bitfinex-derivatives/quotes_SOLF0:USTF0_20250328
["timestamp","ask_amount","ask_price","bid_price","bid_amount"]
[1743150468020,29.05462313,131.75,131.72,17.39855992]
[1743150468414,7.64782313,131.75,131.72,17.39855992]
[1743150468612,29.05462313,131.75,131.72,17.39855992]
[1743150468821,38.80634606,131.75,131.72,0.05243699]
[1743150469014,9.75172293,131.74,131.72,0.05243699]
[1743150469422,7.5941,131.73,131.72,0.05243699]
[1743150475919,17.34582293,131.73,131.72,0.05243699]
[1743150476921,7.5941,131.73,131.72,0.05243699]
[1743150477122,7.5939,131.74,131.72,9.80415992]
[1743150477325,29.05462313,131.75,131.72,9.80415992]
[1743150477522,29.05462313,131.75,131.72,0.05243699]
[1743150477728,7.5941,131.74,131.72,0.05243699]
[1743150478128,29.05462313,131.75,131.72,0.05243699]
[1743150478334,7.5941,131.73,131.72,0.05243699]
[1743150480533,9.75172293,131.73,131.65,13.67592293]
[1743150480835,9.75172293,131.7,131.66,7.5979]
[1743150481031,36.5967,131.69,131.66,7.5979]
[1743150481232,29.0,131.69,131.65,13.67592293]
[1743150481433,29.0,131.69,131.65,21.27422293]
[1743150481734,7.64735691,131.68,131.65,13.67592293]
[1743150481935,0.05005691,131.68,131.67,9.75172293]
[1743150483731,0.05005691,131.68,131.67,17.34932293]
[1743150484935,29.0,131.69,131.68,17.34872293]
[1743150486643,29.0,131.69,131.67,9.80047234]
[1743150487136,29.0,131.69,131.67,0.04874941]
[1743150487742,36.5967,131.69,131.67,0.04874941]
[1743150488039,29.0,131.69,131.67,0.04874941]
[1743150489341,36.5965,131.69,131.67,0.04874941]
[1743150489847,7.597,131.68,131.67,0.04874941]
[1743150490036,17.34872293,131.68,131.67,0.04874941]
[1743150491839,17.34872293,131.68,131.67,0.00064542]
[1743150492043,7.5987,131.65,131.64,9.0]
[1743150492245,36.5987,131.65,131.64,9.0]
[1743150493941,29.0,131.65,131.64,9.0]
[1743150494546,36.5987,131.65,131.64,9.0]
[1743150494745,29.0,131.65,131.64,9.0]
[1743150495642,0.05577681,131.66,131.64,18.75172293]
[1743150495946,29.07577681,131.66,131.64,9.0]
[1743150496243,7.5987,131.65,131.64,9.0]
[1743150496845,36.67417681,131.66,131.64,9.0]
[1743150497046,0.05577681,131.66,131.64,9.0]
[1743150497346,29.02,131.65,131.64,16.5993]
[1743150499751,29.02,131.65,131.64,9.0]
[1743150500144,36.6187,131.65,131.64,9.0]
[1743150502050,46.37042293,131.65,131.64,9.0]
[1743150502451,36.6187,131.65,131.64,9.0]
[1743150505260,46.37042293,131.65,131.64,9.0]
[1743150511162,38.77172293,131.65,131.57,13.57632293]
[1743150511363,9.75172293,131.6,131.56,9.75172293]
[1743150511563,38.75172293,131.6,131.56,9.75172293]
[1743150511763,7.6026,131.59,131.56,9.75172293]
[1743150512061,7.65737983,131.59,131.56,9.75172293]
[1743150512565,0.05477983,131.59,131.56,9.75172293]
[1743150512766,0.05477983,131.59,131.58,7.6028]
[1743150512962,0.05477983,131.59,131.58,17.35452293]
[1743150514261,29.0,131.65,131.58,9.75172293]
[1743150514561,7.5997,131.64,131.61,9.75172293]
[1743150514960,7.5997,131.64,131.62,7.6004]
[1743150515161,7.5997,131.64,131.61,9.75172293]
[1743150515363,7.64968972,131.64,131.62,0.05297546]
[1743150516865,0.04998972,131.64,131.62,0.05297546]
[1743150517369,0.04998972,131.64,131.62,7.65317546]
[1743150517562,7.64938972,131.64,131.62,0.05297546]
[1743150517763,0.04998972,131.64,131.62,0.05297546]
[1743150518068,7.5999,131.63,131.62,0.05297546]
[1743150520970,0.04998972,131.64,131.62,7.65347546]
[1743150521474,7.64928972,131.64,131.62,7.65347546]
[1743150522770,7.64928972,131.64,131.62,0.05297546]
[1743150522974,0.04998972,131.64,131.62,0.05297546]
[1743150523571,0.04998972,131.64,131.62,7.65327546]
[1743150524075,7.64938972,131.64,131.62,7.65327546]
[1743150524374,0.04998972,131.64,131.62,0.05297546]
[1743150525074,0.04998972,131.64,131.62,7.65307546]
[1743150525262,0.04998972,131.64,131.62,17.40479839]
[1743150526069,0.04998972,131.64,131.63,7.5999]
[1743150526471,0.04998972,131.64,131.62,9.80469839]
[1743150526774,0.04998972,131.64,131.63,9.75172293]
[1743150527474,0.04998972,131.64,131.63,17.35162293]
[1743150528076,0.04998972,131.64,131.63,9.75172293]
[1743150531880,7.64928972,131.64,131.63,9.75172293]
[1743150533676,0.04998972,131.64,131.63,9.75172293]
[1743150534386,0.04998972,131.64,131.63,17.35162293]
[1743150534581,9.75172293,131.68,131.63,17.35162293]
[1743150534782,29.0,131.67,131.64,9.75172293]
[1743150534971,7.5987,131.65,131.64,9.75172293]
[1743150535776,7.5987,131.65,131.63,9.80295374]
[1743150536278,7.5987,131.65,131.63,17.40275374]
[1743150536582,7.5987,131.65,131.63,9.80295374]
[1743150537782,7.65537277,131.66,131.63,17.40285374]
[1743150537972,0.05677277,131.66,131.63,17.40285374]
[1743150538176,0.05677277,131.66,131.64,9.75172293]
[1743150538377,7.5987,131.65,131.64,9.75172293]
[1743150539083,7.65517277,131.66,131.64,9.75172293]
[1743150539272,7.65517277,131.66,131.65,9.75172293]
[1743150539476,7.65517277,131.66,131.63,7.65083081]
[1743150539477,7.65517277,131.66,131.64,9.75172293]
[1743150539880,0.05677277,131.66,131.64,17.35082293]
[1743150540082,8.1794,131.73,131.65,9.75172293]
[1743150540283,38.75172293,131.72,131.67,9.75172293]
[1743150540482,7.5963,131.7,131.67,9.75172293]
[1743150540876,38.75172293,131.72,131.67,9.75172293]
[1743150541077,7.5962,131.7,131.67,9.75172293]
[1743150541281,7.5962,131.7,131.68,0.05127353]
[1743150541484,0.05709569,131.71,131.68,0.05127353]
[1743150541672,29.05709569,131.71,131.68,0.05127353]
[1743150541877,7.5962,131.7,131.68,0.05127353]
[1743150542485,7.5962,131.7,131.68,7.64807353]
[1743150543586,7.5962,131.7,131.68,17.39979646]
[1743150543786,7.5964,131.69,131.68,9.80299646]
[1743150543986,7.5964,131.69,131.68,0.05127353]
[1743150547080,7.5959,131.7,131.68,9.80299646]
[1743150547279,7.5959,131.7,131.69,9.75172293]
[1743150547782,29.05709569,131.71,131.68,9.80299646]
[1743150548486,7.5961,131.7,131.68,9.80299646]
[1743150549090,29.05709569,131.71,131.68,9.80299646]
[1743150549490,7.5961,131.7,131.68,9.80299646]
[1743150550682,17.34812293,131.69,131.68,0.05127353]
[1743150553197,7.5964,131.69,131.68,0.05127353]
[1743150555299,17.34812293,131.69,131.68,0.05127353]
[1743150555693,7.5964,131.69,131.68,0.05127353]
[1743150566610,17.34812293,131.69,131.68,0.00128381]
[1743150566909,9.75172293,131.69,131.6,93.31031591]
[1743150567112,9.75172293,131.64,131.6,83.55859298]
[1743150567417,4.2506,131.68,131.6,83.55859298]
[1743150567418,7.601,131.61,131.6,83.55859298]
[1743150567616,36.561,131.61,131.6,83.55859298]
[1743150569216,36.561,131.61,131.59,0.05568279]
[1743150570514,28.96,131.61,131.59,0.05568279]
[1743150570815,36.5614,131.61,131.59,0.05568279]
[1743150574926,7.6016,131.6,131.59,0.05568279]
[1743150575814,17.35332293,131.6,131.59,0.05568279]
[1743150576623,7.6044,131.56,131.54,9.75172293]
[1743150576816,28.96,131.56,131.53,9.75172293]
[1743150577323,7.6049,131.55,131.53,9.75172293]
[1743150577820,7.66193972,131.55,131.53,9.80121346]
[1743150578014,0.05703972,131.55,131.53,9.80121346]
[1743150578524,7.66163972,131.55,131.53,9.80121346]
[1743150580117,7.66163972,131.55,131.54,9.75172293]
[1743150584220,7.6051,131.54,131.53,9.80121346]
[1743150586333,7.6051,131.54,131.53,0.04949053]
[1743150588128,17.35682293,131.54,131.53,0.04949053]
[1743150590135,7.6051,131.54,131.53,0.04949053]
[1743150595134,7.6051,131.54,131.53,9.80121346]
[1743150595940,7.6051,131.54,131.53,0.04949053]
[1743150597041,0.05703972,131.55,131.53,9.80121346]
[1743150597636,7.6051,131.54,131.53,9.80121346]
[1743150597841,0.05703972,131.55,131.53,9.80121346]
[1743150598041,0.05703972,131.55,131.53,0.04949053]
[1743150599735,28.96,131.54,131.53,0.04949053]
[1743150600945,0.05703972,131.55,131.53,9.80121346]
[1743150601139,0.05703972,131.55,131.54,9.75172293]
[1743150601641,0.05703972,131.55,131.53,0.04949053]
[1743150601836,28.96,131.54,131.53,0.04949053]
[1743150602043,36.5651,131.54,131.53,0.04949053]
[1743150604442,46.31682293,131.54,131.53,0.04949053]
[1743150607343,36.5651,131.54,131.53,0.04949053]
[1743150609354,46.31682293,131.54,131.53,0.04949053]
[1743150609542,46.31682293,131.54,131.53,9.053e-05]
[1743150616251,36.5651,131.54,131.53,9.053e-05]
[1743150617249,46.31682293,131.54,131.53,9.053e-05]
[1743150620852,36.5651,131.54,131.53,9.053e-05]
[1743150622357,46.31682293,131.54,131.53,9.053e-05]
[1743150631463,36.5651,131.54,131.53,9.053e-05]
[1743150631757,46.31682293,131.54,131.53,9.053e-05]
[1743150631965,46.29682293,131.54,131.53,9.053e-05]
[1743150635066,36.5451,131.54,131.53,9.053e-05]
[1743150635764,46.29682293,131.54,131.53,9.053e-05]
[1743150636875,36.5451,131.54,131.53,9.053e-05]
[1743150637164,38.69172293,131.6,131.54,7.6051]
[1743150637365,38.69172293,131.6,131.55,9.75172293]
[1743150637966,9.75172293,131.59,131.55,9.75172293]
[1743150638368,7.65626731,131.58,131.56,0.05448879]
[1743150638571,0.05346731,131.58,131.56,0.05448879]
[1743150639272,0.05346731,131.58,131.56,9.80621172]
[1743150639665,0.05346731,131.58,131.56,17.41011172]
[1743150639867,0.05346731,131.58,131.56,9.80621172]
[1743150640771,0.05346731,131.58,131.56,17.41011172]
[1743150640970,0.05346731,131.58,131.56,9.80621172]
[1743150641869,0.05346731,131.58,131.56,17.41011172]
[1743150642369,0.05346731,131.58,131.56,0.05448879]
[1743150642562,38.69172293,131.57,131.56,0.05448879]
[1743150642966,46.29512293,131.57,131.56,0.05448879]
[1743150643567,36.5434,131.57,131.56,0.05448879]
[1743150645975,28.94,131.57,131.56,0.05448879]
[1743150646483,46.29512293,131.57,131.56,0.05448879]
[1743150646690,38.69172293,131.57,131.5,3.9469]
[1743150646891,7.6065,131.52,131.48,100.91841591]
[1743150647092,28.92,131.51,131.48,93.31031591]
[1743150647494,36.5269,131.51,131.48,93.31031591]
[1743150647792,36.57764185,131.51,131.48,93.31031591]
[1743150648093,7.608,131.49,131.48,83.55859298]
[1743150648684,7.608,131.49,131.46,17.67622293]
[1743150648888,7.608,131.49,131.46,25.28592293]
[1743150649086,7.608,131.49,131.46,17.67622293]
[1743150649593,7.608,131.49,131.47,9.75172293]
[1743150651388,7.6077,131.5,131.47,9.75172293]
[1743150651986,7.608,131.49,131.47,9.75172293]
[1743150652791,7.6077,131.5,131.47,9.75172293]
[1743150653390,7.6081,131.49,131.47,9.75172293]
[1743150656194,7.6081,131.49,131.46,15.5342]
[1743150656396,7.6081,131.49,131.47,9.75172293]
[1743150658300,38.67172293,131.48,131.43,9.75172293]
[1743150658489,9.75172293,131.47,131.43,9.75172293]
[1743150658695,7.6098,131.46,131.43,9.75172293]
[1743150658991,28.92,131.45,131.43,9.75172293]
[1743150659596,36.5307,131.45,131.43,9.75172293]
[1743150659893,28.92,131.45,131.42,9.75172293]
[1743150660293,7.6115,131.43,131.42,9.75172293]
[1743150660599,28.97799006,131.45,131.42,9.75172293]
[1743150661398,7.6114,131.44,131.42,9.75172293]
[1743150661697,9.75172293,131.44,131.4,106.40276361]
[1743150661894,7.6118,131.43,131.41,9.75172293]
[1743150662097,28.92,131.42,131.4,106.40276361]
[1743150662291,9.75172293,131.47,131.41,9.75172293]
[1743150662489,28.92,131.46,131.44,9.75172293]
[1743150662699,9.75172293,131.48,131.44,9.75172293]
[1743150662700,28.96890722,131.45,131.44,9.75172293]
[1743150663197,28.96890722,131.45,131.43,9.75172293]
[1743150663698,36.57950722,131.45,131.43,9.75172293]
[1743150664098,28.96890722,131.45,131.43,9.75172293]
[1743150665400,36.57930722,131.45,131.43,9.75172293]
[1743150666003,28.96890722,131.45,131.43,9.75172293]
[1743150666197,28.96890722,131.45,131.43,17.36292293]
[1743150666697,28.96890722,131.45,131.43,9.75172293]
[1743150667502,36.57930722,131.45,131.43,9.75172293]
[1743150668005,28.96890722,131.45,131.43,9.75172293]
[1743150668204,0.04890722,131.45,131.44,9.75172293]
[1743150668395,28.92,131.51,131.44,9.75172293]
[1743150668589,7.608,131.49,131.48,9.75172293]
[1743150668796,28.92,131.51,131.47,9.75172293]
[1743150669001,9.75172293,131.5,131.45,14.02882293]
[1743150669503,0.05561178,131.49,131.46,0.05189521]
[1743150669698,7.6093,131.47,131.46,0.05189521]
[1743150670109,7.6093,131.47,131.46,9.80361814]
[1743150670303,0.05561178,131.49,131.46,9.80361814]
[1743150670493,0.05561178,131.49,131.48,9.75172293]
[1743150670898,7.66361178,131.49,131.48,9.75172293]
[1743150671103,0.05561178,131.49,131.48,9.75172293]
[1743150672401,9.75172293,131.55,131.48,9.75172293]
[1743150672603,28.92,131.54,131.5,9.75172293]
[1743150672805,17.90852293,131.57,131.52,9.75172293]
[1743150673095,28.92,131.56,131.48,28.92]
[1743150673307,9.75172293,131.59,131.55,9.75172293]
[1743150673502,36.5231,131.58,131.54,9.75172293]
[1743150673695,36.57435681,131.58,131.56,0.05699976]
[1743150674205,28.97125681,131.58,131.56,0.05699976]
[1743150675001,0.05125681,131.58,131.56,0.05699976]
[1743150675808,0.05125681,131.58,131.56,9.80872269]
[1743150675998,0.05125681,131.58,131.57,9.75172293]
[1743150676404,0.05125681,131.58,131.56,0.05699976]
[1743150676805,7.6034,131.57,131.56,0.05699976]
[1743150678510,17.35512293,131.57,131.56,0.05699976]
[1743150679901,9.75172293,131.57,131.45,237.69569342]
[1743150680103,9.75172293,131.53,131.48,9.75172293]
[1743150680309,28.9,131.52,131.48,9.75172293]
[1743150680510,28.9,131.52,131.5,9.75172293]
[1743150680708,28.9,131.52,131.51,9.75172293]
[1743150680909,28.9,131.52,131.5,9.75172293]
[1743150681214,28.9,131.52,131.51,9.75172293]
[1743150681508,7.6068,131.51,131.5,0.05553319]
[1743150685806,36.5064,131.52,131.5,0.05553319]
[1743150686011,0.05044293,131.53,131.5,0.05553319]
[1743150686712,0.05044293,131.53,131.5,7.66263319]
[1743150687414,7.65624293,131.53,131.5,0.05553319]
[1743150687608,28.9,131.52,131.5,0.05553319]
[1743150688020,28.9,131.52,131.5,7.66263319]
[1743150688214,28.9,131.52,131.5,0.05553319]
[1743150688414,28.9,131.52,131.51,7.6068]
[1743150688613,0.05044293,131.53,131.5,15.36423073]
[1743150689112,0.05044293,131.53,131.52,22.91489754]
[1743150689817,4.28591,131.61,131.52,15.30869754]
[1743150690007,28.9,131.6,131.55,15.30869754]
[1743150690409,7.6029,131.58,131.56,7.6039]
[1743150690610,4.28591,131.61,131.55,15.30869754]
[1743150690815,33.18591,131.61,131.57,15.30869754]
[1743150691116,0.0483931,131.59,131.57,15.36575611]
[1743150691921,0.0483931,131.59,131.58,7.6028]
[1743150692122,0.0483931,131.59,131.57,15.36575611]
[1743150692522,0.0483931,131.59,131.58,7.6028]
[1743150692718,4.28591,131.61,131.57,15.36575611]
[1743150693419,4.28591,131.61,131.59,15.30869754]
[1743150693619,28.88,131.62,131.61,7.601]
[1743150693815,28.9352431,131.62,131.61,7.601]
[1743150694115,7.6016,131.61,131.6,0.0557115]
[1743150694318,7.6016,131.61,131.57,22.91169754]
[1743150694521,7.6016,131.61,131.59,0.0530104]
[1743150695025,36.53314712,131.62,131.59,0.0530104]
[1743150695319,36.53314712,131.62,131.59,7.6551104]
[1743150695526,28.93234712,131.62,131.59,0.0530104]
[1743150695722,7.6012,131.61,131.59,0.0530104]
[1743150696823,36.53304712,131.62,131.59,0.0530104]
[1743150697025,28.93234712,131.62,131.59,15.36170794]
[1743150697321,28.93234712,131.62,131.6,7.6012]
[1743150697725,0.05234712,131.62,131.61,7.601]
[1743150699218,15.30869754,131.7,131.61,15.30869754]
[1743150699528,15.1862,131.75,131.63,15.30869754]
[1743150699529,387.40939754,131.72,131.63,15.30869754]
[1743150699724,28.88,131.71,131.63,15.30869754]
[1743150700220,15.30869754,131.7,131.61,3.9646]
[1743150700420,0.05035834,131.68,131.66,0.05118579]
[1743150700620,36.4781,131.67,131.66,0.05118579]
[1743150703933,0.05142962,131.63,131.61,0.04970523]
[1743150704132,0.05142962,131.63,131.62,7.6005]
[1743150704727,0.05142962,131.63,131.62,22.90919754]
[1743150705632,23.40939754,131.72,131.62,44.16869754]
[1743150705834,28.86,131.71,131.64,15.30869754]
[1743150706024,7.5982,131.66,131.64,15.30869754]
[1743150706425,7.5982,131.66,131.63,7.5994]
[1743150706426,28.86,131.71,131.62,44.16869754]
[1743150706723,7.5973,131.68,131.62,44.16869754]
[1743150706925,0.05293583,131.68,131.65,0.05264736]
[1743150707131,28.91293583,131.68,131.65,0.05264736]
[1743150707334,7.5982,131.66,131.65,0.05264736]
[1743150710438,7.5979,131.67,131.65,0.05264736]
[1743150710639,28.91293583,131.68,131.65,0.05264736]
[1743150710832,0.05293583,131.68,131.66,15.30869754]
[1743150711031,0.05293583,131.68,131.67,7.5976]
[1743150712435,0.05293583,131.68,131.66,27.11799754]
[1743150712635,0.05293583,131.68,131.66,19.52009754]
[1743150713241,0.05293583,131.68,131.67,7.5976]
[1743150713543,28.86,131.71,131.66,19.52009754]
[1743150713843,36.435,131.72,131.68,15.30869754]
[1743150714041,28.84,131.73,131.68,15.30869754]
[1743150714640,0.05643521,131.72,131.69,0.04888303]
[1743150715045,7.5961,131.7,131.69,0.04888303]
[1743150716645,0.05643521,131.72,131.69,0.04888303]
[1743150717351,0.05643521,131.72,131.7,7.5956]
[1743150717554,0.05643521,131.72,131.69,0.04888303]
[1743150718053,0.05643521,131.72,131.7,7.5958]
[1743150718644,0.05643521,131.72,131.71,7.5953]
[1743150719959,0.05643521,131.72,131.7,22.90429754]
[1743150720159,0.05643521,131.72,131.7,15.30869754]
[1743150720758,0.05643521,131.72,131.71,7.5953]
[1743150721162,0.05643521,131.72,131.69,4.14078303]
[1743150721459,0.05643521,131.72,131.69,0.04888303]
[1743150721856,7.65123521,131.72,131.69,7.64498303]
[1743150722358,0.05643521,131.72,131.7,7.5957]
[1743150723155,0.05643521,131.72,131.71,7.5953]
[1743150723758,0.05643521,131.72,131.7,22.90419754]
[1743150723959,0.05643521,131.72,131.7,15.30869754]
[1743150724159,7.65153521,131.72,131.69,0.04888303]
[1743150724359,0.05643521,131.72,131.69,0.04888303]
[1743150724963,7.65143521,131.72,131.69,0.04888303]
[1743150725760,7.5953,131.71,131.69,0.04888303]
[1743150726267,36.4159,131.7,131.69,0.04888303]
[1743150726563,28.82,131.7,131.66,83.55859298]
[1743150726762,7.5976,131.67,131.66,83.55859298]
[1743150726966,36.4176,131.67,131.66,83.55859298]
[1743150727760,36.4176,131.67,131.65,0.04833322]
[1743150729663,28.82,131.67,131.65,0.04833322]
[1743150730164,7.5982,131.66,131.65,0.04833322]
[1743150730861,0.05199775,131.68,131.65,0.04833322]
[1743150731164,0.05199775,131.68,131.67,7.5976]
[1743150732262,0.05199775,131.68,131.66,7.5979]
[1743150733663,0.05199775,131.68,131.65,0.04833322]
[1743150733867,28.82,131.67,131.65,0.04833322]
[1743150734258,28.82,131.67,131.66,7.5982]
[1743150734866,28.82,131.67,131.65,7.64683322]
[1743150735170,28.82,131.67,131.65,0.04833322]
[1743150736065,36.4176,131.67,131.65,0.04833322]
[1743150736262,28.82,131.67,131.65,0.04833322]
[1743150736670,7.5982,131.66,131.65,0.04833322]
[1743150738067,36.4179,131.67,131.65,0.04833322]
[1743150738369,28.82,131.67,131.65,0.04833322]
[1743150739369,7.5982,131.66,131.65,0.04833322]
[1743150740871,36.4178,131.67,131.65,0.04833322]
[1743150741073,28.82,131.67,131.65,0.04833322]
[1743150741568,0.05199775,131.68,131.65,7.64673322]
[1743150741569,7.64909775,131.68,131.65,7.64673322]
[1743150741767,36.46909775,131.68,131.65,7.64673322]
[1743150742775,28.87199775,131.68,131.65,0.04833322]
[1743150743273,36.46939775,131.68,131.65,7.64663322]
[1743150745277,28.87199775,131.68,131.65,15.35703076]
[1743150745769,28.87199775,131.68,131.66,7.5979]
[1743150746171,28.87199775,131.68,131.65,0.04833322]
[1743150746775,7.5982,131.66,131.65,0.04833322]
[1743150746979,28.87199775,131.68,131.65,0.04833322]
[1743150747370,7.598,131.67,131.65,0.04833322]
[1743150747679,15.1976,131.65,131.58,83.55859298]
[1743150747871,22.91089754,131.59,131.58,50.61462924]
[1743150748176,44.12869754,131.59,131.57,148.11211127]
[1743150748381,7.6028,131.58,131.57,148.11211127]
[1743150748777,7.6028,131.58,131.57,136.39081127]
[1743150748974,7.6034,131.57,131.56,220.91826323]
[1743150749181,7.6034,131.57,131.56,0.05659483]
[1743150749878,7.6034,131.57,131.56,9.483e-05]
[1743150750779,7.6063,131.52,131.46,134.31059943]
[1743150750975,28.82,131.51,131.46,134.31059943]
[1743150751176,28.82,131.51,131.47,275.16575505]
[1743150751582,28.82,131.54,131.47,275.16575505]
[1743150751876,0.05420214,131.52,131.5,24.48575505]
[1743150752889,0.05420214,131.52,131.49,0.05046714]
[1743150753586,0.05420214,131.52,131.5,24.48575505]
[1743150759087,0.05420214,131.52,131.5,32.09315505]
[1743150759491,0.05420214,131.52,131.5,24.48575505]
[1743150760692,0.05420214,131.52,131.5,32.09285505]
[1743150760988,0.05420214,131.52,131.5,24.48575505]
[1743150761395,0.05420214,131.52,131.51,7.6068]
[1743150761690,0.05420214,131.52,131.5,24.48575505]
[1743150761989,0.05420214,131.52,131.5,32.09275505]
[1743150762890,0.05420214,131.52,131.51,7.6068]
[1743150763091,41.89340917,131.59,131.5,24.48575505]
[1743150763391,70.73340917,131.59,131.54,7.6048]
[1743150763582,7.6031,131.58,131.54,7.6048]
[1743150764294,0.0479402,131.57,131.55,0.05474557]
[1743150764883,0.0479402,131.57,131.54,24.48575505]
[1743150765080,0.0479402,131.57,131.52,24.48575505]
[1743150765289,7.6048,131.55,131.51,7.6065]
[1743150765889,0.0580732,131.54,131.52,0.05158471]
[1743150766592,0.0580732,131.54,131.52,7.65778471]
[1743150767793,0.0580732,131.54,131.53,7.6057]
[1743150770591,0.0580732,131.54,131.52,7.65748471]
[1743150770793,0.0580732,131.54,131.52,0.05158471]
[1743150772099,0.0580732,131.54,131.52,7.65758471]
[1743150773297,0.0580732,131.54,131.53,7.6057]
[1743150773608,0.0580732,131.54,131.53,22.90351644]
[1743150775605,28.84,131.56,131.55,7.6045]
[1743150775901,28.84,131.56,131.55,22.90231644]
[1743150776103,28.84,131.56,131.55,15.29781644]
[1743150777505,28.84,131.56,131.54,22.90241644]
[1743150778408,36.48001187,131.57,131.54,22.90241644]
[1743150779601,7.604,131.56,131.54,15.29781644]
[1743150780503,7.6045,131.55,131.54,15.29781644]
[1743150781112,7.6052,131.54,131.52,15.34940115]
[1743150781313,28.82,131.57,131.52,15.34940115]
[1743150781600,0.05558199,131.54,131.52,22.95520115]
[1743150781805,0.05558199,131.54,131.52,15.34940115]
[1743150782304,0.05558199,131.54,131.52,22.95540115]
[1743150782609,0.05558199,131.54,131.52,15.34940115]
[1743150783205,0.05558199,131.54,131.53,7.6057]
[1743150783707,72.10527145,131.54,131.52,15.34940115]
[1743150783910,72.10527145,131.54,131.52,22.95540115]
[1743150784709,79.71067145,131.54,131.52,15.34940115]
[1743150785009,72.10527145,131.54,131.52,15.34940115]
[1743150785212,79.71077145,131.54,131.52,15.34940115]
[1743150785405,49.55449116,131.54,131.52,15.34940115]
[1743150785711,41.94899116,131.54,131.52,15.34940115]
[1743150786111,49.55439116,131.54,131.52,15.34940115]
[1743150787910,98.54977099,131.53,131.52,15.34940115]
[1743150790116,106.15547099,131.53,131.52,15.34940115]
[1743150791415,98.54977099,131.53,131.52,15.34940115]
[1743150792111,106.15547099,131.53,131.52,0.05158471]
[1743150792309,95.6821187,131.53,131.52,0.05158471]
[1743150794608,179.46893705,131.53,131.52,0.05158471]
[1743150797220,235.17670979,131.53,131.52,0.05158471]
[1743150799927,64.26206182,131.53,131.52,0.05158471]
[1743150802720,189.94228935,131.53,131.52,0.05158471]
[1743150803422,199.73686166,131.53,131.52,8.471e-05]
[1743150805725,7.608,131.49,131.48,9.79457231]
[1743150805930,36.428,131.49,131.48,9.79457231]
[1743150806326,7.6086,131.48,131.47,9.79457231]
[1743150808428,7.6086,131.48,131.46,9.85230536]
[1743150808635,7.6091,131.47,131.46,9.85230536]
[1743150808930,28.87476141,131.49,131.46,17.46200536]
[1743150809130,36.48306141,131.49,131.48,9.79457231]
[1743150809524,46.9968861,131.49,131.48,9.79457231]
[1743150809731,7.6086,131.48,131.47,9.79457231]
[1743150810628,46.9968861,131.49,131.47,9.79457231]
[1743150811332,7.6086,131.48,131.47,9.79457231]
[1743150812827,36.48306141,131.49,131.47,9.79457231]
[1743150814136,7.6086,131.48,131.47,9.79457231]
[1743150814934,46.9968861,131.49,131.47,9.79457231]
[1743150815932,10.5685861,131.49,131.48,17.40317231]
[1743150816132,31.54147407,131.5,131.48,9.79457231]
[1743150816428,31.54147407,131.5,131.49,9.79457231]
[1743150817532,31.54147407,131.5,131.49,17.40257231]
[1743150819430,0.04979367,131.51,131.49,9.79457231]
[1743150819633,0.04979367,131.51,131.5,9.79457231]
[1743150820734,0.04979367,131.51,131.5,17.40197231]
[1743150820935,0.04979367,131.51,131.5,9.79457231]
[1743150821232,0.04979367,131.51,131.49,9.85209944]
[1743150821933,0.04979367,131.51,131.49,17.45979944]
[1743150822137,34.0779845,131.51,131.49,0.05752713]
[1743150822327,26.4710845,131.51,131.49,0.05752713]
[1743150822725,26.4710845,131.51,131.5,7.6074]
[1743150824131,58.01255857,131.51,131.5,7.6074]
[1743150826438,26.4710845,131.51,131.5,7.6074]
[1743150827938,26.4710845,131.51,131.49,17.45979944]
[1743150829339,26.4710845,131.51,131.5,7.6074]
[1743150830338,26.4710845,131.51,131.49,17.45969944]
[1743150830538,26.4710845,131.51,131.49,7.66512713]
[1743150830743,26.4710845,131.51,131.49,0.05752713]
[1743150831045,97.70496702,131.51,131.49,0.05752713]
[1743150831233,7.6074,131.5,131.49,0.05752713]
[1743150832242,17.40197231,131.5,131.49,0.05752713]
[1743150832539,9.79457231,131.5,131.44,7.6106]
[1743150832741,9.79457231,131.47,131.43,9.79457231]
[1743150832942,38.59457231,131.46,131.42,8.0681]
[1743150833244,28.8,131.45,131.41,17.40687231]
[1743150833848,0.05794743,131.44,131.42,0.05537288]
[1743150834436,7.6115,131.43,131.42,0.05537288]
[1743150835043,34.09043826,131.44,131.42,0.05537288]
[1743150835643,7.6115,131.43,131.42,0.05537288]
[1743150838146,31.63480672,131.44,131.42,9.84994519]
[1743150838333,31.63480672,131.44,131.43,9.79457231]
[1743150839942,0.05794743,131.44,131.43,9.79457231]
[1743150840444,7.66884743,131.44,131.42,9.84994519]
[1743150841147,0.05794743,131.44,131.43,9.79457231]
[1743150841743,0.05794743,131.44,131.43,17.40607231]
[1743150843648,28.8,131.45,131.44,7.6109]